Cogmind - Beta 17 @@@ ROGUE MODE // 2026.07.19 @ 14:20:10 Player: Akl Result: Destroyed by D-53 Grenadier with Mini Grenade Launcher Performance ------------- Evolutions (0) 0 Regions Visited (2) 400 Robots Destroyed (3) 15 Value Destroyed (87) 87 Prototype IDs (0) 0 Alien Tech Used (0) 0 Bonus (25) 25 TOTAL SCORE: 527 Bonus ------- Follower Combat Kills 25 Cogmind --------- Core Integrity 0/250 Matter 406/500 Energy 60/100 System Corruption 0% Temperature Cool (0) Movement Core (250) Ox4 Location -10/Mines Parts ------- > --- POWER (1) -------- (None) > --- PROPULSION (2) --- (None) > --- UTILITY (2) ------ Small Storage Unit High-capacity Matter Pod > --- WEAPON (2) ------- Heavy Assault Rifle Heavy Assault Rifle > --- INVENTORY (8) ---- Ion Engine Improved Aluminum Leg Improved Aluminum Leg Assault Rifle Heavy Assault Rifle Slug Cannon Peak State ------------ > --- POWER ------------ Ion Engine > --- PROPULSION ------- Improved Aluminum Leg Improved Aluminum Leg > --- UTILITY ---------- Small Storage Unit High-capacity Matter Pod > --- WEAPON ----------- Assault Rifle Slug Cannon > --- INVENTORY -------- Ion Engine Improved Aluminum Leg Improved Aluminum Leg Heavy Assault Rifle Heavy Assault Rifle Heavy Assault Rifle Heavy Assault Rifle Rocket Launcher [Rating: 13] Favorites ----------- Power Ion Engine Engine Ion Engine Propulsion Improved Aluminum Leg Leg Improved Aluminum Leg Utility Small Storage Unit Storage Small Storage Unit Weapon Assault Rifle Ballistic Gun Assault Rifle Ballistic Cannon Slug Cannon Launcher Rocket Launcher Build | -11 -10 -10 ------- Run | Yrd Mat Min Slots Evolved . | . . . Power . | . . . Propulsion . | . . . Utility . | . . . Weapon . | . . . Parts Attached 15 | 5 4 6 Power 1 | 1 . . Engine 1 | 1 . . Core . | . . . Reactor . | . . . Propulsion 4 | 2 2 . Treads . | . . . Leg 4 | 2 2 . Wheel . | . . . Hover . | . . . Flight . | . . . Utility 2 | . 1 1 Device . | . . . Storage 2 | . 1 1 Processor . | . . . Hackware . | . . . Protection . | . . . Artifact . | . . . Weapon 8 | 2 1 5 Energy Gun . | . . . Energy Cannon . | . . . Ballistic Gun 6 | 2 . 4 Ballistic Cannon 1 | . . 1 Launcher 1 | . 1 . Special Weapon . | . . . Impact Weapon . | . . . Slashing Weapon . | . . . Piercing Weapon . | . . . Special Melee Weapon . | . . . Unidentified Prototypes . | . . . Parts Lost 5 | . . 5 Power 1 | . . 1 Propulsion 2 | . . 2 Utility . | . . . Weapon 2 | . . 2 Highest Loss Streak 5 | . . 5 To Critical Strikes . | . . . Average Backups 6 | 2 4 7 Power . | . 1 1 Propulsion 1 | . . 2 Utility . | . . . Weapon 3 | . 2 4 Tool/Special . | . . . Unused Backups 3 | . . 3 Power 1 | . . 1 Propulsion 2 | . . 2 Utility . | . . . Weapon . | . . . Tool/Special . | . . . Average Slot Usage (%) 91 | . 75 97 Engine 13 | . 14 13 Leg 26 | . 28 26 Storage 21 | . 4 27 Ballistic Gun 20 | . 21 20 Ballistic Cannon 5 | . . 7 Launcher 1 | . 6 . Peak Build Rating 13 | 5 10 13 Average Rating 10 | 3 6 11 On Entrance 5 | . 5 10 Avg Prop Armor Cover (%) . | . . . Naked Turns . | . . . Heaviest Build 23 | 9 16 23 Greatest Support 26 | 20 26 26 Greatest Overweight (x) 5 | 2 5 4 Average Overweight (x) . | . . . Largest Inventory Capacity 8 | 5 8 8 Average Capacity 7 | 5 6 8 Most Carried 8 | 5 8 8 Average Carried 6 | 2 4 7 Final Capacity 8 | 5 8 8 Final Carried 8 | 2 8 6 Class Distribution -------------------- 100% | Mutant Dominant Class ---------------- Mutant | -10/Materials Mutant | -10/Mines Resources | -11 -10 -10 ----------- Run | Yrd Mat Min Matter Collected 508 | 250 . 258 Remotely . | . . . Salvage Created 127 | . 34 93 Parts 4 | . 1 3 Haulers Intercepted . | . . . Recyclers Shooed . | . . . Parts Field Recycled . | . . . Retrieved Matter . | . . . Parts Self-Destructed . | . . . Prevented . | . . . Parts Restored . | . . . Kills | -11 -10 -10 ------- Run | Yrd Mat Min Combat Hostiles Destroyed 2 | . . 2 Guns 2 | . . 2 Classes Destroyed 2 | . 1 1 Recycler 1 | . 1 . Grunt 2 | . . 2 Best Kill Streak 1 | . 1 1 Combat Bots Only 1 | . . 1 Max Kills in Single Turn 1 | . 1 1 Gunslinging . | . . . Exploded . | . . . Melee . | . . . Uniques/NPCs Destroyed . | . . . Combat | -11 -10 -10 -------- Run | Yrd Mat Min Hostile Shots Fired 63 | . . 63 Missed 15 | . . 15 Hits 48 | . . 48 Melee 1 | . . 1 Projectile 47 | . . 47 AOE 14 | . . 14 Damage Taken 998 | . . 998 Core 275 | . . 275 Absorbed by Shields . | . . . Core Remaining (%) 100 | 100 . . Volleys Fired 26 | . 3 23 Largest 2 | . 2 2 Hottest 60 | . 40 60 Shots Fired 48 | . 4 44 Gun 43 | . 2 41 Cannon 1 | . . 1 Launcher 4 | . 2 2 Special . | . . . Kinetic 44 | . 2 42 Thermal . | . . . Explosive 4 | . 2 2 Electromagnetic . | . . . Robot Hit Streak 6 | . . 6 Robot Miss Streak 5 | . 3 5 Penetration Max . | . . . Secondary Targets . | . . . Shots Hit Robots 28 | . . 28 Core Hits 15 | . 3 12 Critical Kills . | . . . Critical Parts Destroyed . | . . . Critical Strikes . | . . . Melee Attacks . | . . . Impact . | . . . Slashing . | . . . Piercing . | . . . Sneak Attacks . | . . . Combat Hostiles . | . . . Follow-up Attacks . | . . . Damage Inflicted 525 | . 111 414 Guns 352 | . . 352 Cannons . | . . . Explosions 173 | . 111 62 Melee . | . . . Ramming . | . . . Kinetic 352 | . . 352 Thermal . | . . . Explosive 173 | . 111 62 Electromagnetic . | . . . Impact . | . . . Slashing . | . . . Piercing . | . . . Highest Corruption . | . . . Average Corruption . | . . . Corruption Purged . | . . . Corruption Blocked . | . . . Overload Shots . | . . . Overflow Damage . | . . . Projectiles . | . . . Explosions . | . . . Melee . | . . . Knockbacks . | . . . Impact . | . . . Kinetic . | . . . Secondary . | . . . Self-Inflicted Damage . | . . . Shots . | . . . Rammed . | . . . Targets Rammed . | . . . Kicked . | . . . Crushed . | . . . Highest Temperature 9 | . . 9 Average Temperature 4 | . . 4 Received Heat Transfer 129 | . . 129 Siege Activations . | . . . Martial Activations . | . . . Shielding Activations . | . . . Robots Disrupted . | . . . Combat Hostiles . | . . . Robots Corrupted . | . . . Combat Hostiles . | . . . Parts Fried . | . . . Impact Corruptions . | . . . Robots Melted . | . . . Combat Hostiles . | . . . Parts Melted . | . . . Heat Transferred . | . . . Parts Sabotaged . | . . . Parts Stolen . | . . . Parts Stripped . | . . . Power Chain Reactions . | . . . Alert | -11 -10 -10 ------- Run | Yrd Mat Min Maximum Alert Level . | . . . Low Security (%) 100 | 100 100 100 Level 1 . | . . . Level 2 . | . . . Level 3 . | . . . Level 4 . | . . . Level 5 . | . . . High Security . | . . . Max Security . | . . . Peak Influence 74 | . 16 74 Initial . | . . . Average 9 | . 2 13 Influence Increases 139 | . 16 123 Destroy 0b10 Robot/C 60 | . . 60 Destroy 0b10 Robot/NC 5 | . 5 . Destroy Leader 10 | . . 10 Allied During Kill 4 | . . 4 Destroy Structure 30 | . 11 19 Lose Combat Pursuer 30 | . . 30 Influence Decreases 139 | . 16 123 Time Decay 79 | . 16 63 Lost Part 40 | . . 40 Lost Ally 20 | . . 20 Squads Dispatched . | . . . Investigation . | . . . Extermination . | . . . Reinforcement . | . . . Assault . | . . . Garrison . | . . . Intercept . | . . . Searches Triggered . | . . . Construction Impeded . | . . . Haulers Reinforced . | . . . Active Scanning Responses . | . . . Cargo Convoy Interrupts . | . . . Stealth | -11 -10 -10 --------- Run | Yrd Mat Min Distress Signals . | . . . Communications Jammed . | . . . Distress Signals . | . . . Times Spotted 37 | . 3 34 Peak Tracking Total 21 | . 2 21 Tactical Retreats 3 | . . 3 Traps | -11 -10 -10 ------- Run | Yrd Mat Min Traps Triggered . | . . . Indirectly . | . . . Trap Hack Attempts . | . . . Triggered . | . . . Disarmed . | . . . Reprogrammed . | . . . Reused . | . . . Traps Extracted . | . . . Installed . | . . . Triggered . | . . . Machines | -11 -10 -10 ---------- Run | Yrd Mat Min Machines Disabled . | . . . Max in Single Turn . | . . . Machines Repaired . | . . . Machines Dismantled . | . . . Machines Sabotaged . | . . . Overloaded Fab Kills . | . . . Hacking | -11 -10 -10 --------- Run | Yrd Mat Min Machines Accessed . | . . . Terminals . | . . . Fabricators . | . . . Repair Stations . | . . . Recycling Units . | . . . Scanalyzers . | . . . Garrison Access . | . . . Total Hacks . | . . . Successful . | . . . Failed . | . . . Catastrophic . | . . . Database Lockouts . | . . . Manual . | . . . Terminals . | . . . Fabricators . | . . . Repair Stations . | . . . Recycling Units . | . . . Scanalyzers . | . . . Garrison Access . | . . . Terminal Hacks . | . . . Fabricator Hacks . | . . . Repair Station Hacks . | . . . Recycling Unit Hacks . | . . . Scanalyzer . | . . . Garrison Access Hacks . | . . . Unauthorized Hacks . | . . . Terminals . | . . . Fabricators . | . . . Repair Stations . | . . . Recycling Units . | . . . Scanalyzers . | . . . Garrison Access . | . . . Data Cores Recovered . | . . . Used . | . . . Hacking Detections . | . . . Full Trace Events . | . . . Feedback Events . | . . . Feedback Blocked . | . . . Robot Schematics Acquired . | . . . Robots Built . | . . . Authchips . | . . . Time . | . . . Total Robot Build Rating . | . . . Part Schematics Acquired . | . . . Parts Built . | . . . Authchips . | . . . Time . | . . . Total Part Build Rating . | . . . Part Studies Acquired . | . . . Parts Repaired . | . . . Time . | . . . Parts Recycled . | . . . Recycled Matter . | . . . Retrieved Matter . | . . . Retrieved Components . | . . . Parts Scanalyzed . | . . . Part Schematics Acquired . | . . . Parts Damaged . | . . . Bothacking | -11 -10 -10 ------------ Run | Yrd Mat Min Used RIF Installer . | . . . Robots Hacked . | . . . Non-combat . | . . . Combat . | . . . Robot Hacks Applied . | . . . Relay Couplers Released . | . . . Fabnet Peak Effective % . | . . . Robots Rewired . | . . . Allies Hacked . | . . . Hacks Repelled . | . . . Allies | -11 -10 -10 -------- Run | Yrd Mat Min Total Allies 1 | . . 1 Largest Group 1 | . . 1 Highest-Rated Group 31 | . . 31 Highest-Rated Ally 31 | . . 31 Total Orders . | . . . Ally Attacks 5 | . . 5 Total Damage 63 | . . 63 Kills 2 | . . 2 Allies Corrupted . | . . . Allies Melted . | . . . Intel | -11 -10 -10 ------- Run | Yrd Mat Min Active Infowar (turns) . | . . . Robot Analysis Total . | . . . Derelict Logs Recovered 2 | . . 2 Drone Launches . | . . . Drone Recoveries . | . . . Exploration | -11 -10 -10 ------------- Run | Yrd Mat Min Turns Passed 659 | 45 159 455 Spaces Moved 426 | 33 114 279 Core 20 | 16 1 3 Treads . | . . . Legs 406 | 17 113 276 Wheels . | . . . Hover . | . . . Flight . | . . . Fastest Speed 50 | 50 120 120 Average Speed 119 | 101 121 121 Slowest Speed 300 | 150 300 250 Overloaded Moves . | . . . Propulsion Burnouts . | . . . Robots Hopped . | . . . Potential Cave-ins . | . . . Cave-ins Triggered . | . . . Exploration Rate (%) 31 | 3 28 64 Regions Visited 2 Branch Regions 1 Pre-discovered Areas . | . . . Known Exits Taken . | . . . Unknown Exits Taken 2 | 1 1 . Scrap Searched . | . . . Spaces Dug . | . . . Terrain Destroyed 39 | . 10 29 Melee . | . . . Projectile 1 | . . 1 AOE 38 | . 10 28 Terrain Rammed . | . . . Walls Destroyed . | . . . Machines Disabled . | . . . Actions | -11 -10 -10 --------- Run | Yrd Mat Min Total 525 | 44 131 350 Wait 39 | . . 39 Move 424 | 32 113 279 Hop . | . . . Pick Up 16 | 7 9 . Fast Attach 2 | . . 2 Attach 10 | 5 3 2 Detach . | . . . Swap 5 | . 1 4 Drop 3 | . 2 1 Fire 26 | . 3 23 Melee . | . . . Ram . | . . . Kick . | . . . Crush . | . . . Escape Stasis . | . . . Rewire . | . . . Trap . | . . . Miscellaneous . | . . . Route ------- -11/Scrapyard -10/Materials -10/Mines (discovered 1 exit: [*Mat]) History --------- Turn | Location | Event 18 | -11/Scrapyard | Discovered new exit (range 15) 46 | -11/Scrapyard | Entered Materials 117 | -10/Materials | Discovered new exit (range 14) 205 | -10/Materials | Entered Mines 210 | -10/Mines | Met a Derelict bent on vengeance 229 | -10/Mines | Learned Materials garrison access intel 243 | -10/Mines | A weapon hastily lodged in a ceiling crevice suddenly fell to the ground 261 | -10/Mines | Learned Materials terminal intel 305 | -10/Mines | Build established: Mutant 362 | -10/Mines | Escorted by a lone wolf Derelict 583 | -10/Mines | Discovered new exit (range 9) 619 | -10/Mines | Assembled infested the area 639 | -10/Mines | Core integrity fell below 50% 655 | -10/Mines | Core integrity fell below 20% 660 | -10/Mines | Destroyed by D-53 Grenadier with Mini Grenade Launcher Last Messages --------------- 00639_ as-14775 destroyed. 00639_ as-85394 destroyed. 00639_ as-01748 destroyed. 00639_ as-65457 destroyed. 00639_ as-43028 destroyed. 00639_ as-73053 destroyed. 00639_ as-73987 destroyed. 00640_ The unstable cave ceiling collapses. 00640_ Destroyed Asb. Hover Unit. 00642_ as-58396 destroyed. 00642_ as-84613 destroyed. 00642_ as-77796 destroyed. 00644_ Ion Engine destroyed. 00646_ The unstable cave ceiling collapses. 00649_ Destroyed Shock Absorption System. 00651_ The unstable cave ceiling collapses. 00654_ Hvy. Assault Rifle destroyed. 00655_ The unstable cave ceiling collapses. 00658_ as-94275 destroyed. 00660_ The unstable cave ceiling collapses. Map ----- +----------------------------------------------------+ | | | | | | | | | ???????????????????????????????????????????? | | ???????????????????????????????????????????? | | ???????????????????????????????????????????? | | ???????????????????????????????????????????? | | ???????????????????????????????????????????? | | ???????????????????????????????????????????? | | ???????????????????????????????????????????? | | ?????????????????????????????????###???????? | | ???#????????????????????????????? #???????? | | ??# ###????????????????????????? #???????? | | ?## ?????????????????????????? #???????? | | ?# ????????????????????????? #???????? | | ??# #????????????????????????? ##??????? | | ??# #????????????????????????? ##?????? | | ??# #???????????????????????? #?????? | | ### #???????????????????####? #?????? | | # #????????????????##### ## ##????? | | #??????????####?## # # #????? | | ##??????## # # # #????? | | #??????# # ##???? | | * #???????# d ##??? | | ##??????# % %] @ #??? | | = ##???????# # ! #??? | | ####????????# # a #??? | | ##???????????# ## # #??? | | #????????????## #???## # #??? | | ??????????????# #????#### #??? | | ??????????????# #???????### #??? | | ??????????????# #?????????### % #??? | | ?############## ##??????????? ##??? | | ?# #??????????? ###???? | | ?# #???????????# ##?????? | | ?# #????????????# #??????? | | ?# """ """ < #????????????? ??????? | | ?# """ """ #????????????? ?????? | | ?# """ """ #????????????? ??????? | | ?# #?????????????? ?????????? | | ?#!################????????????????????????? | | ?#=#???????????????????????????????????????? | | ?# #???????????????????????????????????????? | | ?# ########????????????????????????????????? | | ?#[ #????????????????????????????????? | | ?########=#????????????????????????????????? | | ???????## #????????????????????????????????? | | ???????#" #????????????????????????????????? | | ??????### ###### #?????????????????????? | +----------------------------------------------------+ Best States ------------- Heat Dissipation 25 Energy Generation 10 Energy Capacity 250 Matter Stores 467 Matter Capacity 500 Sight Range 16 Terrain Scan Density 10 Evasion (%) 55 Item Schematics ----------------- None Robot Schematics ------------------ None Fabricated ------------ Nothing Repaired ---------- Nothing Studied --------- None Alien Tech Used ----------------- None Achievements -------------- Hunted Challenges ------------ None Game ------ Seed ThermalBlanketAxe Manual? 0 Play Time 00:10:46 Cumulative 21.7 hours Start 2026.07.19 @ 13:53:17 End 2026.07.19 @ 14:20:10 Sessions 1 Manual Loads 0 Difficulty Rogue Special Mode None Game No. 38 Rogue 38 Adventurer 0 Explorer 0 Win Type - Total 0 Types 0/0/0/0/0/0/0/0/0/0 Lore% 13 Gallery% 20 Achievement% 16 Wizard Run 0 Options --------- Layout 1 ASCII 0 Keyboard 0 Movement Mouse Keybinds 0 Fullscreen 1 Font 24/Smallcaps Map View 50x35 Zoom Use 0% Tactical HUD 1 Map Filters NONE Filters NONE Steam 1 RUN: 8b6aa120-0334-48bf-baf6-f9b4c215ba42